Department Family,Entity,Date,Expenses Type,Expense Area,Supplier,Transaction Number,  Total  ,
Department of Health,The Christie NHS Foundation Trust,07/04/2021,Christie Nursery Refurbishment, Capital,CLC CONTRACTORS LTD,0000664229," 34,896.98 ",
Department of Health,The Christie NHS Foundation Trust,08/04/2021,Drugs,Drugs,EAST CHESHIRE NHS TRUST,0000661019," 67,811.86 ",
Department of Health,The Christie NHS Foundation Trust,08/04/2021,Drugs,Drugs,LLOYDSPHARMACY CLINICAL HOMECARE,0000664713," 34,756.65 ",
Department of Health,The Christie NHS Foundation Trust,08/04/2021,Drugs,Drugs,MID CHESHIRE HOSPITALS NHS FT,0000656629," 134,662.62 ",
Department of Health,The Christie NHS Foundation Trust,08/04/2021,Drugs,Drugs,MID CHESHIRE HOSPITALS NHS FT,0000660773," 172,112.84 ",
Department of Health,The Christie NHS Foundation Trust,08/04/2021,Drugs,Drugs,TAMESIDE AND GLOSSOP INTEGRATED CARE NHS,0000660452," 53,723.08 ",
Department of Health,The Christie NHS Foundation Trust,08/04/2021,Clinical Activity Charge,Network Services,WRIGHTINGTON WIGAN AND LEIGH NHS FT,0000663331," 277,691.07 ",
Department of Health,The Christie NHS Foundation Trust,08/04/2021,Facilities Management Services - February 2021, Christie Pathology Partner,CPP FACILITIES LLP,0000664574," 215,410.18 ",
Department of Health,The Christie NHS Foundation Trust,08/04/2021,Pathology Testing Services, Christie Pathology Partner,THE CHRISTIE PATHOLOGY PARTNERSHIP LLP,0000664708," 90,000.00 ",
Department of Health,The Christie NHS Foundation Trust,08/04/2021,Pathology Testing Services - February 2021, Christie Pathology Partner,THE CHRISTIE PATHOLOGY PARTNERSHIP LLP,0000664570," 453,269.30 ",
Department of Health,The Christie NHS Foundation Trust,08/04/2021,Supply & Installation of AV Equipment, School of Oncology,PURE AUDIO VISUAL LTD,0000663817," 35,668.80 ",
Department of Health,The Christie NHS Foundation Trust,08/04/2021,Fire Safety Service Contract,Estates & Facilities,CHUBB FIRE AND SECURITY LIMITED,0000657948," 22,770.00 ",
Department of Health,The Christie NHS Foundation Trust,08/04/2021,Call-Out Charge,Estates & Facilities,MEIKO UK LTD,0000662931," 23,609.60 ",
Department of Health,The Christie NHS Foundation Trust,08/04/2021,TLD Charges,Christie Medical Physics,PUBLIC HEALTH ENGLAND NHS,0000664256," 22,728.00 ",
Department of Health,The Christie NHS Foundation Trust,08/04/2021,Corridor Refurbishment, Capital,CLC CONTRACTORS LTD,0000664777," 29,535.87 ",
Department of Health,The Christie NHS Foundation Trust,08/04/2021,Construction Works , Capital,F PARKINSON LTD,0000664537," 156,033.42 ",
Department of Health,The Christie NHS Foundation Trust,08/04/2021,Construction Works , Capital,F PARKINSON LTD,0000664499," 44,703.38 ",
Department of Health,The Christie NHS Foundation Trust,08/04/2021,The Paterson Redevelopment Project, Capital,INTEGRATED HEALTH PROJECTS,0000664846," 4,858,099.20 ",
Department of Health,The Christie NHS Foundation Trust,08/04/2021,Services Software Package,Manchester Cancer,COMPUTACENTER(UK) LTD,0000664032," 121,900.00 ",
Department of Health,The Christie NHS Foundation Trust,08/04/2021,RDC Expenditure,Manchester Cancer,MANCHESTER UNIVERSITY NHS FT,0000663757," 407,584.00 ",
Department of Health,The Christie NHS Foundation Trust,08/04/2021,RDC Expenditure,Manchester Cancer,SALFORD ROYAL NHS FT,0000663367," 665,000.00 ",
Department of Health,The Christie NHS Foundation Trust,08/04/2021,RDC Expenditure,Manchester Cancer,SALFORD ROYAL NHS FT,0000663450," 665,700.00 ",
Department of Health,The Christie NHS Foundation Trust,08/04/2021,Pilot Study Order,Manchester Cancer,THE PENNINE ACUTE HOSPITAL NHS TRUST,0000663727," 128,780.00 ",
Department of Health,The Christie NHS Foundation Trust,12/04/2021,Renewable Energy Services, Capital,VITAL ENERGI SOLUTIONS LTD,0000665402," 2,324,556.00 ",
Department of Health,The Christie NHS Foundation Trust,13/04/2021,Technology Skills Services,Digital Services,PLURALSIGHT,0000660489," 27,007.19 ",
Department of Health,The Christie NHS Foundation Trust,15/04/2021,Drugs,Drugs,BAXTER HEALTHCARE LTD,0000665107," 355,904.40 ",
Department of Health,The Christie NHS Foundation Trust,15/04/2021,Drugs,Drugs,BAXTER HEALTHCARE LTD,0000665149," 65,102.11 ",
Department of Health,The Christie NHS Foundation Trust,15/04/2021,Blood Products,Network Services,DD NHS BLOOD AND TRANSPLANT,0000665272," 160,265.00 ",
Department of Health,The Christie NHS Foundation Trust,15/04/2021,Blood Products,Network Services,THE ANTHONY NOLAN BONE MARROW,0000659272," 58,290.00 ",
Department of Health,The Christie NHS Foundation Trust,15/04/2021,Compensation Fees,Quality & Standards,DD NHS LITIGATION AUTHORITY,0000665735," 177,439.90 ",
Department of Health,The Christie NHS Foundation Trust,15/04/2021,Gas Charges,Estates & Facilities,VITAL ENERGI SOLUTIONS LTD,0000663933," 74,359.64 ",
Department of Health,The Christie NHS Foundation Trust,15/04/2021,Patients Fee, Other Income Levies and Gra,THE CHRISTIE CLINIC (HCA),0000662560," 366,091.40 ",
Department of Health,The Christie NHS Foundation Trust,15/04/2021,Transfer Services,Christie Medical Physics,ISOCLEANSE LTD,0000665204," 20,924.00 ",
Department of Health,The Christie NHS Foundation Trust,15/04/2021,Infrastructure Works, Capital,CLC CONTRACTORS LTD,0000664763," 34,896.98 ",
Department of Health,The Christie NHS Foundation Trust,15/04/2021,Kitchen Floor Replacement, Capital,INGHAM AND GARNER LTD,0000663433," 87,231.33 ",
Department of Health,The Christie NHS Foundation Trust,15/04/2021,Professional Tax Advice , Capital,KPMG LLP,0000665216," 33,036.60 ",
Department of Health,The Christie NHS Foundation Trust,15/04/2021,Macclesfield Christie Construction Works, Capital,VINCI CONSTRUCTION UK LIMITED,0000665392," 2,377,036.80 ",
Department of Health,The Christie NHS Foundation Trust,15/04/2021,GM Cancer Innovation Project Funding,Manchester Cancer,MANCHESTER UNIVERSITY NHS FT,0000664366," 80,000.00 ",
Department of Health,The Christie NHS Foundation Trust,15/04/2021,Medical Equipment,Manchester Cancer,SALFORD ROYAL NHS FT,0000663858," 115,223.52 ",
Department of Health,The Christie NHS Foundation Trust,15/04/2021,All Wards & Departments,The Christie NHS FT Balance,NHS SUPPLY CHAIN,0000665064," 60,062.13 ",
Department of Health,The Christie NHS Foundation Trust,15/04/2021,All Wards & Departments,The Christie NHS FT Balance,NHS SUPPLY CHAIN,0000665065," 75,017.99 ",
Department of Health,The Christie NHS Foundation Trust,20/04/2021,Medical Equipment,Research & Innovation,QUANTERIX,0000664037," 25,513.00 ",
Department of Health,The Christie NHS Foundation Trust,22/04/2021,Drugs,Drugs,ALCURA UK LIMITED,0000666094," 95,947.74 ",
Department of Health,The Christie NHS Foundation Trust,22/04/2021,Drugs,Drugs,BAXTER HEALTHCARE LTD,0000664610," 120,164.93 ",
Department of Health,The Christie NHS Foundation Trust,22/04/2021,Drugs,Drugs,BAXTER HEALTHCARE LTD,0000664739," 109,936.24 ",
Department of Health,The Christie NHS Foundation Trust,22/04/2021,Drugs,Drugs,BAXTER HEALTHCARE LTD,0000664588," 227,484.84 ",
Department of Health,The Christie NHS Foundation Trust,22/04/2021,Drugs,Drugs,BAXTER HEALTHCARE LTD,0000664988," 80,743.18 ",
Department of Health,The Christie NHS Foundation Trust,22/04/2021,Drugs,Drugs,BAXTER HEALTHCARE LTD,0000664615," 146,049.56 ",
Department of Health,The Christie NHS Foundation Trust,22/04/2021,Drugs,Drugs,HEALTHCARE AT HOME LTD,0000665131," 33,274.00 ",
Department of Health,The Christie NHS Foundation Trust,22/04/2021,SLA Contract Charge Q4 2020/21,Network Services,EAST CHESHIRE NHS TRUST,0000663491," 138,155.00 ",
Department of Health,The Christie NHS Foundation Trust,22/04/2021,Electricity Invoice - March 2021,Network Services,EDF ENERGY,0000665753," 50,210.63 ",
Department of Health,The Christie NHS Foundation Trust,22/04/2021,Electricity Invoice - March 2021,Network Services,EDF ENERGY,0000665791," 33,973.34 ",
Department of Health,The Christie NHS Foundation Trust,22/04/2021,Maintenance of Equipment,Network Services,ELEKTA  LTD,0000664515," 1,396,523.00 ",
Department of Health,The Christie NHS Foundation Trust,22/04/2021,Service Transfer,Network Services,TAMESIDE AND GLOSSOP INTEGRATED CARE NHS,0000658034," 53,723.08 ",
Department of Health,The Christie NHS Foundation Trust,22/04/2021,Service Transfer,Network Services,TAMESIDE AND GLOSSOP INTEGRATED CARE NHS,0000662374," 53,723.08 ",
Department of Health,The Christie NHS Foundation Trust,22/04/2021,Service Transfer,Network Services,TAMESIDE AND GLOSSOP INTEGRATED CARE NHS,0000664346," 53,723.08 ",
Department of Health,The Christie NHS Foundation Trust,22/04/2021,Media Work,Corporate Development,FAT MEDIA LIMITED,0000664542," 23,919.00 ",
Department of Health,The Christie NHS Foundation Trust,22/04/2021,Clinical Directors Places, School of Oncology,THE KINGS FUND,0000664550," 25,600.00 ",
Department of Health,The Christie NHS Foundation Trust,22/04/2021,Patients Fee, Other Income Levies and Gra,THE CHRISTIE CLINIC (HCA),0000665447," 135,409.00 ",
Department of Health,The Christie NHS Foundation Trust,22/04/2021,Medical Equipment,Christie Medical Physics,ADVANCED ACCELERATOR APPLICATIONS LTD,0000662727," 32,349.00 ",
Department of Health,The Christie NHS Foundation Trust,22/04/2021,Outsourced PET-CT Appointments,Christie Medical Physics,ALLIANCE MEDICAL LTD,0000665151," 228,355.00 ",
Department of Health,The Christie NHS Foundation Trust,22/04/2021,Consultancy Commercial Service, Capital,ALERTIVE LIMITED,0000664611," 55,250.00 ",
Department of Health,The Christie NHS Foundation Trust,22/04/2021,Elevator Installation, Capital,ANSA ELEVATORS LTD,0000665551," 53,272.80 ",
Department of Health,The Christie NHS Foundation Trust,22/04/2021,Consultancy Fees, Capital,ARCADIS LLP,0000664632," 60,269.00 ",
Department of Health,The Christie NHS Foundation Trust,22/04/2021,Water Installation Works - Proton Beam Therapy, Capital,DODD GROUP (MIDLANDS) LTD,0000665323," 89,839.98 ",
Department of Health,The Christie NHS Foundation Trust,22/04/2021,Technology Equipment, Capital,GE MEDICAL SYSTEMS LIMITED,0000665238," 478,794.28 ",
Department of Health,The Christie NHS Foundation Trust,22/04/2021,Construction Works, Capital,INGHAM AND GARNER LTD,0000665415," 27,348.00 ",
Department of Health,The Christie NHS Foundation Trust,22/04/2021,Infrastructure Works, Capital,MEDICAL PIPELINE SERVICES LIMITED,0000664683," 31,350.72 ",
Department of Health,The Christie NHS Foundation Trust,22/04/2021,Multi-Tiered Car Park Construction, Capital,VINCI CONSTRUCTION UK LIMITED,0000666129," 1,343,031.00 ",
Department of Health,The Christie NHS Foundation Trust,22/04/2021,Medical Equipment, Capital,XIEL LTD,0000664606," 53,441.64 ",
Department of Health,The Christie NHS Foundation Trust,22/04/2021,Implementation of GMC Aftercare Programme,Manchester Cancer,CIVICA UK LTD,0000664717," 812,520.00 ",
Department of Health,The Christie NHS Foundation Trust,22/04/2021,Consultancy Fees,Digital Services,CIGNITI TECHNOLOGIES UK LTD,0000665068," 22,525.00 ",
Department of Health,The Christie NHS Foundation Trust,22/04/2021,All Wards & Departments,The Christie NHS FT Balance,NHS SUPPLY CHAIN,0000665063," 67,204.14 ",
Department of Health,The Christie NHS Foundation Trust,22/04/2021,All Wards & Departments,The Christie NHS FT Balance,NHS SUPPLY CHAIN,0000665066," 35,611.36 ",
Department of Health,The Christie NHS Foundation Trust,29/04/2021,Medical Technology,Clin Support & Spec Surgery,ENVAIR LTD,0000665446," 41,898.00 ",
Department of Health,The Christie NHS Foundation Trust,29/04/2021,Medical Technology,Clin Support & Spec Surgery,ENVAIR LTD,0000665445," 29,376.00 ",
Department of Health,The Christie NHS Foundation Trust,29/04/2021,Drugs,Drugs,BAXTER HEALTHCARE LTD,0000665457," 61,018.87 ",
Department of Health,The Christie NHS Foundation Trust,29/04/2021,Drugs,Drugs,BAXTER HEALTHCARE LTD,0000664990," 82,538.16 ",
Department of Health,The Christie NHS Foundation Trust,29/04/2021,Drugs,Drugs,BAXTER HEALTHCARE LTD,0000665179," 334,258.30 ",
Department of Health,The Christie NHS Foundation Trust,29/04/2021,Maintenance of Equipment,Network Services,ELEKTA  LTD,0000665108," 250,000.00 ",
Department of Health,The Christie NHS Foundation Trust,29/04/2021,Q4 Paed Anaesthetic Consultant Cost,Network Services,MANCHESTER UNIVERSITY NHS FT,0000663378," 44,205.32 ",
Department of Health,The Christie NHS Foundation Trust,29/04/2021,Provision of Services at MacMillan Centre ,Network Services,MID CHESHIRE HOSPITALS NHS FT,0000665290," 52,893.00 ",
Department of Health,The Christie NHS Foundation Trust,29/04/2021,Blood Products,Network Services,NHS BLOOD AND TRANSPLANT,0000665280," 28,346.66 ",
Department of Health,The Christie NHS Foundation Trust,29/04/2021,Medical Equipment,Network Services,PHILIPS HEALTHCARE,0000665336," 164,144.00 ",
Department of Health,The Christie NHS Foundation Trust,29/04/2021,Medical Equipment,Network Services,PHILIPS HEALTHCARE,0000665337," 52,100.00 ",
Department of Health,The Christie NHS Foundation Trust,29/04/2021,Blood Products,Network Services,THE ANTHONY NOLAN BONE MARROW,0000665247," 47,028.00 ",
Department of Health,The Christie NHS Foundation Trust,29/04/2021,Membership Fee,Trust Administration,NHS PROVIDERS,0000665720," 25,513.00 ",
Department of Health,The Christie NHS Foundation Trust,29/04/2021,Cancer RDC Funding,Manchester Cancer,ALLIANCE MEDICAL LTD,0000664039," 110,300.00 ",
Department of Health,The Christie NHS Foundation Trust,29/04/2021,System Quarterly Licence Fee,Digital Services,IQ HEALTH TECH LTD,0000665089," 32,500.00 ",
Department of Health,The Christie NHS Foundation Trust,29/04/2021,Computer Equipment,Digital Services,XMA LTD,0000666261," 80,049.60 ",
